[Event "ChessKid Cup Div-II 2023"]
[Site "Online"]
[Date "2023.05.23"]
[Round "2.2"]
[White "Oparin, Grigoriy"]
[Black "Eljanov, Pavel"]
[Result "1/2-1/2"]
[ECO "E18"]
[WhiteElo "2667"]
[BlackElo "2705"]
[Annotator "TA"]
[PlyCount "153"]
[EventDate "2023.05.21"]
[EventType "k.o."]
[EventCountry "NET"]
[SourceTitle "playchess.com"]
[Source "ChessBase"]
[SourceQuality "1"]
[TimeControl "900+3"]

{[%evp 15,153,8,30,27,27,31,30,21,25,13,29,31,36,22,51,47,54,61,45,-13,0,0,0,0,0,0,0,0,0,0,6,0,0,0,0,0,0,0,0,0,0,-168,-48,-104,-80,-95,-103,-88,-66,-64,-77,-179,-163,-519,-235,-235,-235,-235,-222,-199,-197,-193,-190,-226,-196,-204,-28,-28,-28,-28,-28,-76,0,0,0,0,0,0,0,0,0,-185,-168,-315,-236,-218,-212,-1154,-1074,-1989,-1857,-2472,-2062,-2368,-2155,-5708,-5149,-836,-10403,-1296,-29937,-12775,0,-12202,-10815,-10414,-9422,-10407,-5536,-3558,-799,-29960,-683,-680,-672,-664,-595,-29976,-29975,-29974,-29975,-29975,-584,-584,0,0,0,0,0,0,0,0,0,0,0,0,0,0,0,0]} 1. d4 {[%emt 0:00:07]} Nf6 {[%emt 0:00:09]} 2. c4 {[%emt 0:00:01]} e6 {[%emt 0:00:02]} 3. Nf3 {[%emt 0:00:00]} b6 {[%emt 0:00:15]} 4. g3 {[%emt 0:00:02]} Bb7 {[%emt 0:00:01]} 5. Bg2 {[%emt 0:00:02]} Be7 {[%emt 0:00:01]} 6. O-O {[%emt 0:00:01]} O-O {[%emt 0:00:01]} 7. Nc3 {[%emt 0:00:01]} Ne4 {[%emt 0:00:06]} 8. Bd2 {[%emt 0:00:01] now supersedes 8.Qc2.} f5 {[%emt 0:00:05]} 9. Ne5 {[%emt 0:00:09] E18: Queen's Indian: Old Main Line (4 g3 Bb7 5 Bg2 Be7 6 0-0 0-0 7 Nc3).} Bf6 {[%emt 0:00:41]} 10. Qc2 {[%emt 0:00:02][%cal Rc3e4]} Nxc3 {[%emt 0:01:19]} 11. Bxc3 {[%emt 0:00:03] White has an edge.} (11. Bxb7 Nxe2+ 12. Kg2 Nxd4 $17) (11. bxc3 Bxg2 12. Kxg2 Bxe5 13. dxe5 Nc6 $17) 11... Bxg2 {[%emt 0:00:04]} 12. Kxg2 {[%emt 0:00:00]} d6 {[%emt 0:00:14]} 13. Nf3 {[%emt 0:00:03] [#]} d5 $146 {[%emt 0:00:08]} ({Predecessor:} 13... Qd7 14. e4 fxe4 15. Qxe4 d5 16. cxd5 exd5 17. Qd3 Nc6 18. Rad1 Rae8 19. Rfe1 Nd8 {0-1 Molenda,M (2349)-Eljanov,P (2672) Titled Tuesday intern op 09th Mar blitz 2021 (4)}) 14. Qa4 {[%emt 0:00:04]} c6 {[%emt 0:00:12]} 15. Rac1 {[%emt 0:00:22]} a5 {[%emt 0:01:28]} 16. Bd2 {[%emt 0:00:15]} g5 {[%emt 0:01:34]} 17. cxd5 {[%emt 0:00:43]} (17. h3 $14) 17... Qxd5 {[%emt 0:00:45]} 18. Qc4 {[%emt 0:00:02]} g4 {[%emt 0:00:25][%mdl 64] Pin} 19. Qxd5 {[%emt 0:00:01][%mdl 64] Remove Defender} exd5 {[%emt 0:00:00]} 20. Ne5 {[%emt 0:01:34]} Bxe5 {[%emt 0:00:01]} 21. dxe5 {[%emt 0:00:00]} c5 {[%emt 0:00:17]} 22. Rfd1 {[%emt 0:00:09]} Kf7 {[%emt 0:01:01]} 23. Bh6 {[%emt 0:01:20][%csl LRd5,LRf8]} Rd8 {[%emt 0:00:02]} 24. Bg5 {[%emt 0:00:01]} Rd7 {[%emt 0:00:01]} 25. h3 {[%emt 0:00:00]} gxh3+ {[%emt 0:00:11]} 26. Kxh3 {[%emt 0:00:02]} Nc6 {[%emt 0:00:01]} 27. f4 {[%emt 0:00:06]} Rg8 {[%emt 0:00:21][%cal Oc6e5]} 28. g4 $2 {[%emt 0:00:48]} (28. Bf6 $11) 28... fxg4+ {[%emt 0:01:20]} (28... Ke6 $1 $19 {[%cal Oc6e5] White must now prevent ...Nxe5!} 29. gxf5+ Kxf5) 29. Kxg4 {[%emt 0:00:00]} (29. Kg3 $1 $15) 29... h6 $17 {[%emt 0:00:14][%cal Bh7h6,Bh6g5,Bg5g4,Bg4g3][%mdl 96] Pin} 30. Kf5 {[%emt 0:00:03]} Nxe5 {[%emt 0:00:40]} (30... hxg5 $2 31. e6+ Ke8 32. exd7+ Kxd7 33. Rxd5+ (33. fxg5 Kd6 $16) 33... Kc7 34. Kg4 (34. fxg5 Ne7+ 35. Ke6 Nxd5 $11) 34... gxf4+ 35. Kxf4 $18) 31. Rh1 {[%emt 0:00:58]} Nc4 $36 {[%emt 0:01:16][%mdl 2048] Black has some pressure.} 32. Rxc4 {[%emt 0:00:17][%cal Oh1h6]} hxg5 $15 {[%emt 0:00:10][%mdl 4096] Endgame KRR-KRR} 33. Ra4 {[%emt 0:00:30]} (33. Rcc1 $17) 33... g4 {[%emt 0:00:21]} 34. e4 $2 {[%emt 0:00:30]} (34. Ra3) 34... dxe4 {[%emt 0:00:16]} (34... g3 $142 35. Ra3 g2) 35. Rh7+ $19 {[%emt 0:01:20]} Ke8 $1 {[%emt 0:00:38]} 36. Rxe4+ {[%emt 0:00:01]} Kd8 {[%emt 0:00:01]} 37. Rh2 {[%emt 0:00:01]} g3 {[%emt 0:00:51]} 38. Rg2 {[%emt 0:00:02]} Rd5+ {[%emt 0:00:02]} 39. Ke6 {[%emt 0:00:35]} Rd3 {[%emt 0:00:15]} 40. Re5 {[%emt 0:01:07]} Rf3 $2 {[%emt 0:00:07]} (40... Re8+ $19 41. Kf5 Rxe5+ 42. Kxe5 a4) 41. Rg5 $11 {[%emt 0:00:06]} Rxg5 {[%emt 0:00:32]} 42. fxg5 {[%emt 0:00:01] KR-KR} Ke8 {[%emt 0:00:01] And now ...a4 would win.} 43. Ke5 {[%emt 0:01:46]} (43. a4 $1 $11 {should be considered.}) 43... c4 {[%emt 0:00:02]} (43... a4 $17 {Strongly threatening ...c4.} 44. Ke4 Rf2 45. Rxg3 Rxb2) 44. Ke4 {[%emt 0:01:47]} Rd3 {[%emt 0:00:01]} 45. a4 {[%emt 0:00:01]} Kf7 {[%emt 0:00:09]} 46. Kf5 {[%emt 0:00:02]} Kg7 {[%emt 0:00:18]} 47. Kg4 {[%emt 0:00:35]} Rb3 {[%emt 0:00:27]} 48. Re2 $2 {[%emt 0:00:03]} (48. Rxg3 $11 Rb4 49. Kf5) 48... Rb4 $1 $19 {[%emt 0:00:14] Threatens to win with ...c3+.} 49. Kxg3 {[%emt 0:00:24]} (49. Kf5 $142) 49... Rxa4 {[%emt 0:00:01]} 50. Re7+ {[%emt 0:00:30] [#]} Kf8 $1 {[%emt 0:00:01]} ({Weaker is} 50... Kg6 51. Re6+ Kxg5 52. Rxb6 $17) 51. Rc7 {[%emt 0:00:12] [#]} (51. Re1) 51... Rb4 $1 {[%emt 0:00:02]} 52. Kf3 {[%emt 0:00:03]} b5 {[%emt 0:00:03]} (52... Rxb2 53. Rxc4 b5 54. Rc8+ Kg7 55. Kg4 $17) 53. g6 {[%emt 0:00:09]} Rxb2 {[%emt 0:00:02] aiming for ...a4.} 54. Ke4 {[%emt 0:00:01]} a4 {[%emt 0:00:03][%cal Ba5a4,Ba4a3][%mdl 32] Hoping for ...a3.} 55. Kd4 {[%emt 0:00:14]} a3 {[%emt 0:00:02]} 56. Ra7 {[%emt 0:00:01]} a2 {[%emt 0:00:02]} 57. Kc3 {[%emt 0:00:01]} Rg2 {[%emt 0:00:02]} (57... Rf2 $19 58. Kb4 Rb2+ 59. Kc3 Rg2 60. Rf7+ Kg8) 58. Kb4 {[%emt 0:00:04]} Rb2+ {[%emt 0:00:08]} ({Inferior is} 58... Rxg6 59. Kxb5 Rg7 60. Rxa2 $11) 59. Kc3 {[%emt 0:00:01] The board is on fire.} Rb3+ {[%emt 0:00:01]} 60. Kd4 {[%emt 0:00:14]} Rd3+ {[%emt 0:00:01]} 61. Kc5 {[%emt 0:00:03]} Rd2 {[%emt 0:00:02]} 62. Kb4 {[%emt 0:00:04]} Kg8 {[%emt 0:00:01]} (62... Rf2 $142 63. Ra6 Rb2+ 64. Kc3 Rb3+ 65. Kc2 Rg3) 63. Kc3 {[%emt 0:00:03]} Rg2 {[%emt 0:00:02]} (63... Rd3+ $142 64. Kb2 Rd2+ 65. Kc3 Rf2 66. Kb4 Rb2+ 67. Kc3 Rb3+ 68. Kc2 Rg3 69. Kb2 Rg2+ 70. Kc3 Rh2 71. Kb4 Rb2+ 72. Kc3 Rh2 73. Kb4 Rb2+) 64. Kb4 {[%emt 0:00:01]} Rf2 {[%emt 0:00:04]} ({Not} 64... Rxg6 65. Kxb5 Rg4 66. Rxa2 $11) 65. Kc3 {[%emt 0:00:02]} Rf3+ {[%emt 0:00:00]} 66. Kb4 {[%emt 0:00:01]} Rb3+ {[%emt 0:00:03]} 67. Kc5 {[%emt 0:00:00]} Rb2 {[%emt 0:00:02]} 68. Kd4 {[%emt 0:00:01]} Rc2 {[%emt 0:00:02]} (68... b4 $142 69. Kxc4 b3 70. Kd4 Rc2 71. Ra8+ Kg7 72. Ke4 Rc1 73. Ra7+ Kxg6 74. Kd4 a1=Q+ 75. Rxa1 Rxa1 76. Kc3 Rb1 77. Kc4 Kf5 78. Kc3 Ke4 79. Kc4 Rc1+ 80. Kxb3 Kd4 81. Kb2 Rc3 82. Ka2 Ke3 83. Ka1 Kd2 84. Kb2 Rh3 85. Ka1 Kc2 86. Ka2 Kc1 87. Ka1 Ra3#) 69. Kc5 {[%emt 0:00:03]} c3 $2 {[%emt 0:00:08]} ({Better is} 69... Rf2 $19 {...c3 would be deadly.} 70. Kb4 Rg2) 70. Kb4 $11 {[%emt 0:00:03] The position is equal.} Rc1 {[%emt 0:00:15]} 71. Rxa2 {[%emt 0:00:02]} c2 {[%emt 0:00:02] ( -> ...Rb1+)} 72. Kb3 {[%emt 0:00:03]} Rg1 {[%emt 0:00:01]} 73. Rxc2 {[%emt 0:00:01]} Rxg6 {[%emt 0:00:01]} 74. Kb4 {[%emt 0:00:01]} Rg5 {[%emt 0:00:02]} 75. Rc5 {[%emt 0:00:00]} Rxc5 {[%emt 0:00:01]} 76. Kxc5 {[%emt 0:00:01]} Kf7 {[%emt 0:00:01]} 77. Kxb5 {[%emt 0:00:00] Black had all chances to win.   Weighted Error Value: White=0.74/Black=0.31} 1/2-1/2

[Event "ChessKid Cup Div-II 2023"]
[Site "Online"]
[Date "2023.05.23"]
[Round "2.3"]
[White "Eljanov, Pavel"]
[Black "Oparin, Grigoriy"]
[Result "0-1"]
[ECO "B14"]
[WhiteElo "2705"]
[BlackElo "2667"]
[Annotator "TA"]
[PlyCount "82"]
[EventDate "2023.05.21"]
[EventType "k.o."]
[EventCountry "NET"]
[SourceTitle "playchess.com"]
[Source "ChessBase"]
[SourceQuality "1"]
[TimeControl "900+3"]

{[%evp 17,82,4,17,0,0,0,3,1,17,7,7,7,7,7,14,0,0,0,0,0,0,0,0,0,0,0,0,0,-4,-7,0,0,0,0,0,0,0,-98,-85,-92,-89,-93,-92,-113,-113,-154,-146,-162,-151,-295,-295,-293,-285,-346,-358,-890,-358,-358,-332,-29970,-460,-443,-442,-1063,-1036,-725,-453]} 1. d4 {[%emt 0:00:04]} Nf6 {[%emt 0:00:05]} 2. c4 {[%emt 0:00:02]} e6 {[%emt 0:00:00]} 3. Nc3 {[%emt 0:00:02]} Bb4 {[%emt 0:00:03]} 4. e3 {[%emt 0:00:02]} O-O {[%emt 0:00:03]} 5. Bd3 {[%emt 0:00:02]} c5 {[%emt 0:00:01]} 6. Nf3 {[%emt 0:00:04]} d5 {[%emt 0:00:03]} 7. cxd5 {[%emt 0:00:08]} cxd4 {[%emt 0:00:01]} 8. exd4 {[%emt 0:00:03]} exd5 {[%emt 0:00:01]} 9. O-O {[%emt 0:00:04]} Bg4 {[%emt 0:00:02]} 10. h3 {[%emt 0:01:13] B14: Caro-Kann: Panov-Botvinnik Attack with 5...e6 and 5...g6.} Bh5 {[%emt 0:00:02]} 11. Bg5 {[%emt 0:00:52]} Bxc3 {[%emt 0:00:03]} 12. bxc3 {[%emt 0:00:02] The position is equal.} Qd6 $5 {[%emt 0:00:00][%mdl 4] [#] Exploring less charted territory.} 13. Bxf6 $146 {[%emt 0:01:49]} ({Predecessor:} 13. Rb1 b6 14. g4 Bg6 15. Nh4 Bxd3 16. Qxd3 Ne4 17. Nf5 Qd7 18. Bf4 Nc6 19. f3 Nf6 20. Be5 Qe6 21. Rbe1 Nxe5 22. Rxe5 Qd7 23. Qe3 Rae8 24. Qg5 g6 25. Qxf6 Qxf5 26. gxf5 {1-0 Cuenca Cadenas,J-Enoksson,B (1169) W-ch WS/A/246 email 2021}) 13... Qxf6 {[%emt 0:00:03]} 14. g4 {[%emt 0:00:01]} Bg6 {[%emt 0:00:02]} 15. Ne5 {[%emt 0:00:01]} Qd6 {[%emt 0:00:35]} 16. Rb1 {[%emt 0:02:46]} b6 {[%emt 0:00:40]} 17. Bxg6 {[%emt 0:00:25]} hxg6 {[%emt 0:00:01]} 18. Qa4 {[%emt 0:00:08]} Rc8 {[%emt 0:00:12]} 19. Rfe1 {[%emt 0:01:02]} Nc6 {[%emt 0:00:05]} 20. Re3 {[%emt 0:00:09]} Nxe5 {[%emt 0:00:07]} 21. dxe5 {[%emt 0:00:03]} Qe6 {[%emt 0:00:00]} 22. Rb4 {[%emt 0:00:55]} Rc5 {[%emt 0:00:06]} 23. Rd4 {[%emt 0:00:22]} g5 {[%emt 0:00:09]} 24. Kg2 {[%emt 0:01:01]} g6 {[%emt 0:00:17]} 25. Qc2 {[%emt 0:00:15]} Rac8 {[%emt 0:00:03][%cal Ba8c8,Bc8c5,Bc5a5,Ba5e5,Be5e3,Be3h3][%mdl 32]} 26. Qd2 {[%emt 0:00:01]} Kg7 {[%emt 0:00:31]} 27. f4 {[%emt 0:00:35]} (27. Rdd3 $11) 27... gxf4 $17 {[%emt 0:00:06]} 28. Rxf4 {[%emt 0:00:01] [#]} d4 $1 {[%emt 0:00:12]} 29. Rxd4 {[%emt 0:01:33] And now Rd6 would win.} Rxe5 {[%emt 0:00:01]} 30. Rdd3 {[%emt 0:00:45]} Rcc5 {[%emt 0:00:03] Black is more active.} 31. Qf2 {[%emt 0:00:21]} Ra5 {[%emt 0:00:06]} 32. Rxe5 {[%emt 0:00:02]} Rxe5 {[%emt 0:00:01][%mdl 4096] Endgame KQR-KQR} ({Worse is} 32... Qxe5 33. Rd7 Qe6 34. Qd4+ Qf6 35. Qxf6+ Kxf6 36. Rd2 $17) 33. Rd2 {[%emt 0:00:24] Dodges Re2} (33. Qd4 $17 {was necessary.}) 33... Re3 $19 {[%emt 0:00:03]} 34. Qf4 {[%emt 0:00:10]} Qc6+ {[%emt 0:00:38]} ({Inferior is} 34... Rxc3 35. Qd4+ Qf6 36. a4 $17) 35. Kf2 {[%emt 0:00:02]} Rxh3 {[%emt 0:00:36] White must now prevent ...Qh1.} 36. c4 $2 {[%emt 0:00:35]} (36. Qd4+ Kg8 37. Qd8+ Kh7 38. Qd5) 36... Qf6 {[%emt 0:00:44]} (36... Qh1 $142 37. a3 Qh2+ 38. Qxh2 Rxh2+ 39. Ke3 Rxd2 40. Kxd2 Kf6) 37. Qxf6+ {[%emt 0:00:04]} Kxf6 {[%emt 0:00:00]} 38. c5 $2 {[%emt 0:00:39]} (38. Rd7 $19 Ra3 39. Ke2) 38... bxc5 {[%emt 0:00:03]} (38... Rh2+ $142 39. Ke3 Rxd2 40. Kxd2 bxc5 41. Ke3 Kg5 42. Kf3 c4 43. Kf2 Kxg4 44. Ke3 f5 45. Kd4 f4 46. Kxc4 f3 47. Kd3 Kf4 48. Kd2 g5 49. Ke1 g4 50. Kd2 g3 51. Ke1 g2 52. Kf2 a5 53. a4 Ke4 54. Ke1 g1=Q+ 55. Kd2 Qb1 56. Kc3 f2 57. Kd2 Qb2+ 58. Kd1 f1=Q#) 39. Rd5 {[%emt 0:00:03] Black is clearly winning.} Rc3 {[%emt 0:00:04]} 40. Rd6+ {[%emt 0:00:10]} (40. Ke2 $142) 40... Kg5 {[%emt 0:00:04]} 41. Rd7 {[%emt 0:00:00]} f6 {[%emt 0:00:01] Weighted Error Value: White=0.68/Black=0.45} 0-1

[Event "ChessKid Cup Div-II 2023"]
[Site "Online"]
[Date "2023.05.23"]
[Round "2.3"]
[White "Anton Guijarro, David"]
[Black "Fedoseev, Vladimir"]
[Result "1/2-1/2"]
[ECO "C42"]
[WhiteElo "2690"]
[BlackElo "2680"]
[Annotator "TA"]
[PlyCount "92"]
[EventDate "2023.05.21"]
[EventType "k.o."]
[EventCountry "NET"]
[SourceTitle "playchess.com"]
[Source "ChessBase"]
[SourceQuality "1"]
[TimeControl "900+3"]

{[%evp 15,92,20,23,12,13,14,11,19,21,22,25,22,38,6,13,7,14,12,13,0,-6,-3,-6,-7,-13,-14,-5,-13,-8,-9,0,0,0,-8,0,-4,-5,-8,-8,-6,0,0,6,-12,-7,-25,-16,-14,0,0,0,0,0,0,0,0,0,0,0,0,0,0,0,0,0,0,0,0,0,0,30,0,0,0,22,0,0,0,27]} 1. e4 {[%emt 0:00:04]} e5 {[%emt 0:00:10]} 2. Nf3 {[%emt 0:00:02]} Nf6 {[%emt 0:00:01][%cal Bg8f6,Bf6e4,Be4d6][%mdl 32]} 3. Nxe5 {[%emt 0:00:02]} d6 {[%emt 0:00:01]} 4. Nf3 {[%emt 0:00:01]} Nxe4 {[%emt 0:00:01]} 5. d4 {[%emt 0:00:02]} d5 {[%emt 0:00:02]} 6. Bd3 {[%emt 0:00:01]} Be7 {[%emt 0:00:08]} 7. O-O {[%emt 0:00:05]} Bf5 {[%emt 0:00:03]} 8. Re1 {[%emt 0:00:12]} O-O {[%emt 0:00:07]} 9. Nbd2 $1 {[%emt 0:00:09][%cal Rd2e4,Bb1d2,Bd2f1,Bf1e3][%mdl 4] now scores much better than the old 9.c4. C42: Petroff Defence: 3 Nxe5 and unusual White 3rd moves.} (9. c4 {with more complications.} Nc6 10. cxd5 Qxd5 11. Nc3) 9... Nd6 {[%emt 0:00:08]} 10. Nf1 {[%emt 0:00:05]} Bxd3 {[%emt 0:00:12]} 11. Qxd3 {[%emt 0:00:02]} c6 {[%emt 0:00:04]} 12. Bf4 {[%emt 0:00:17]} Na6 {[%emt 0:00:05][%cal Bb8a6,Ba6c7,Bc7e6,Be6g5,Bg5e4][%mdl 32]} 13. h4 {[%emt 0:00:18][%cal Bh2h4,Bh4h5][%mdl 32]} Re8 {[%emt 0:00:44]} 14. h5 {[%emt 0:02:14]} (14. Ng5 $5 {[%cal Rd3h7]} Bxg5 15. hxg5 $11) 14... Nc7 {[%emt 0:00:07]} 15. Ne3 {[%emt 0:01:48]} Ne6 {[%emt 0:00:11]} 16. Bxd6 {[%emt 0:00:02]} Bxd6 {[%emt 0:00:02] [#]} 17. g3 $146 {[%emt 0:00:23]} ({Predecessor:} 17. Ng4 h6 18. Qf5 a5 19. g3 a4 20. c3 Nc7 21. Kg2 Nb5 22. Rxe8+ Qxe8 {½-½ Deakin,C (2101)-Milde,L (2325) W-ch WS/M/784 email 2020}) 17... Ng5 {[%emt 0:01:14]} 18. Qf5 {[%emt 0:00:26]} (18. Nxg5 {simplifies} Qxg5 19. Qf5 Qxf5 20. Nxf5 Bc7 21. Kg2) 18... Ne4 {[%emt 0:00:35]} 19. c4 {[%emt 0:01:13]} Bb4 {[%emt 0:00:30] [#] ...Nd6 is the strong threat.} 20. Re2 {[%emt 0:00:09][%cal Rc4d5]} Nd6 {[%emt 0:01:49][%csl LRc4,LRf5]} 21. Qd3 {[%emt 0:01:04]} dxc4 {[%emt 0:00:27]} 22. Nxc4 {[%emt 0:00:03]} Rxe2 {[%emt 0:00:03]} 23. Qxe2 {[%emt 0:00:01]} Qe8 {[%emt 0:00:52]} 24. Qd3 {[%emt 0:03:39]} Qe4 {[%emt 0:00:17]} 25. Qxe4 {[%emt 0:00:01]} Nxe4 {[%emt 0:00:01]} 26. a3 {[%emt 0:00:02]} Bf8 {[%emt 0:00:01]} 27. Na5 {[%emt 0:00:10]} Rb8 {[%emt 0:00:03]} 28. Ne5 {[%emt 0:00:11]} Nf6 {[%emt 0:00:14]} 29. g4 {[%emt 0:00:03]} Bd6 {[%emt 0:00:09]} 30. f3 {[%emt 0:00:14]} (30. Nac4 Bc7 $15) 30... Bc7 {[%emt 0:00:03]} 31. b4 {[%emt 0:00:11]} h6 {[%emt 0:02:09]} 32. Kf2 {[%emt 0:00:07]} Nd5 {[%emt 0:00:55]} 33. Rc1 {[%emt 0:00:56]} Nf4 {[%emt 0:00:23] [#] aiming for ...Bxe5.} 34. Ke3 {[%emt 0:00:16]} Ne6 {[%emt 0:00:03]} 35. Rc4 {[%emt 0:00:15]} c5 {[%emt 0:00:28]} 36. d5 {[%emt 0:00:19][%cal Bd4d5,Bd5e6][%mdl 32] Hoping for Nd7.} Bxe5 {[%emt 0:00:48]} 37. dxe6 $11 {[%emt 0:00:03][%mdl 4096] Endgame KRB-KRN} Bc7 {[%emt 0:00:20]} 38. Nb3 {[%emt 0:00:12]} ({But not} 38. Rxc5 Bb6 39. Ke4 Bxc5 40. bxc5 Kf8 41. exf7 (41. c6 $2 bxc6 42. Nxc6 Rb6 $19) 41... Kxf7 $17) 38... b5 $1 {[%emt 0:00:20]} 39. Re4 {[%emt 0:00:27] e7 would be deadly.} ({Much worse is} 39. Rxc5 Bb6 40. exf7+ Kxf7 $17) 39... cxb4 {[%emt 0:00:15]} 40. axb4 {[%emt 0:00:12] Black must now prevent e7.} Bb6+ {[%emt 0:00:02]} 41. Ke2 {[%emt 0:00:05]} fxe6 {[%emt 0:00:02]} 42. Rxe6 {[%emt 0:00:05]} Rc8 {[%emt 0:00:01]} 43. Kd3 {[%emt 0:00:06]} Rd8+ {[%emt 0:00:30] The position is equal.} 44. Ke2 {[%emt 0:00:11]} Rc8 {[%emt 0:00:15]} 45. Kd3 {[%emt 0:00:06]} Rd8+ {[%emt 0:00:15]} 46. Ke2 {[%emt 0:00:14]} Rc8 {[%emt 0:00:06] An even fight not without its subleties.   Weighted Error Value: White=0.04 (flawless) /Black=0.02 (flawless)} 1/2-1/2

[Event "ChessKid Cup Div-II 2023"]
[Site "Online"]
[Date "2023.05.23"]
[Round "2.3"]
[White "Nguyen, Ngoc Truong Son"]
[Black "Le, Quang Liem"]
[Result "1-0"]
[ECO "E15"]
[WhiteElo "2645"]
[BlackElo "2728"]
[Annotator "TA"]
[PlyCount "125"]
[EventDate "2023.05.21"]
[EventType "k.o."]
[EventCountry "NET"]
[SourceTitle "playchess.com"]
[Source "ChessBase"]
[SourceQuality "1"]
[TimeControl "900+3"]

{[%evp 16,125,16,-3,26,21,37,41,32,12,32,36,37,32,30,19,32,13,0,0,21,22,26,5,7,10,31,0,0,0,0,0,0,0,0,-29,60,62,56,52,113,120,115,76,123,118,229,239,208,155,318,340,340,339,339,319,482,481,482,482,480,461,481,480,450,450,551,539,544,545,541,539,427,428,422,370,359,352,420,400,399,399,397,391,496,368,406,381,380,177,370,365,1120,1060,12637,9606,29977,538,12789,12789,12799,6832,29981,29982,29982,29981,29983,29984,29988,29988,29998,29999]} 1. d4 {[%emt 0:00:11]} Nf6 {[%emt 0:00:04]} 2. Nf3 {[%emt 0:00:04]} b6 {[%emt 0:00:08]} 3. c4 {[%emt 0:01:07]} e6 {[%emt 0:00:03]} 4. g3 {[%emt 0:01:05]} Ba6 {[%emt 0:00:03]} 5. b3 {[%emt 0:00:36]} Bb7 {[%emt 0:00:37]} 6. Bg2 {[%emt 0:00:12]} Bb4+ {[%emt 0:00:01]} 7. Bd2 {[%emt 0:00:07]} a5 {[%emt 0:00:03]} 8. O-O {[%emt 0:00:11]} O-O {[%emt 0:00:03]} 9. Bg5 {[%emt 0:01:22]} Be7 {[%emt 0:01:26] E15: Queen's Indian: 4 g3 sidelines, 4 g3 Ba6 and 4 g3 Bb7 early deviations.} 10. Nc3 {[%emt 0:00:08]} h6 {[%emt 0:00:28]} 11. Bxf6 {[%emt 0:00:23]} Bxf6 {[%emt 0:00:00] [#] White is slightly better.} 12. Qc2 $146 {[%emt 0:00:09]} ({Predecessor:} 12. e4 d6 13. e5 dxe5 14. dxe5 Be7 15. Qc2 Qc8 16. Rad1 Nc6 17. Nb5 Bc5 18. Qe2 {½-½ Krogius,N (2465)-Rubinetti,J (2455) San Martin 1993 (1)}) 12... g6 {[%emt 0:00:17]} 13. Rad1 {[%emt 0:00:35]} d6 {[%emt 0:00:08]} 14. e3 {[%emt 0:00:30]} Bg7 {[%emt 0:00:19]} 15. Ne1 {[%emt 0:00:24][%cal Bf3e1,Be1d3,Bd3f4][%mdl 32]} c6 {[%emt 0:00:27]} 16. Nd3 {[%emt 0:00:21]} Nd7 {[%emt 0:00:16]} 17. Rc1 {[%emt 0:01:21]} Qb8 {[%emt 0:00:12]} 18. Rfd1 {[%emt 0:00:41]} Rc8 {[%emt 0:00:04]} 19. a4 {[%emt 0:01:04]} d5 {[%emt 0:00:39]} 20. cxd5 {[%emt 0:00:11]} exd5 {[%emt 0:00:17]} 21. Nf4 {[%emt 0:00:08]} Nf6 {[%emt 0:00:23]} 22. e4 {[%emt 0:00:29]} dxe4 {[%emt 0:00:17]} 23. Nxe4 {[%emt 0:00:00]} Nxe4 {[%emt 0:00:03]} 24. Bxe4 {[%emt 0:00:04]} Qd6 {[%emt 0:00:05]} 25. h4 {[%emt 0:00:30]} Ra7 {[%emt 0:01:31] Black is weak on the light squares} (25... Bxd4 $2 26. Ne2 (26. Qc4 Rd8 $16) 26... Bxf2+ 27. Kxf2 Qf6+ 28. Kg1 $18) (25... h5 $11) 26. h5 $1 $14 {[%emt 0:00:08][%cal Rh5g6]} g5 {[%emt 0:00:03]} 27. Ng2 {[%emt 0:00:02]} Ba8 {[%emt 0:01:59]} (27... Bxd4 $2 28. Ne3 Qe5 29. Nf5 $18) (27... Raa8 $14) 28. Ne3 $16 {[%emt 0:00:03]} Rac7 {[%emt 0:00:18]} 29. Qd3 {[%emt 0:00:54] White is more active.} Rd8 {[%emt 0:00:12]} (29... Re8 $142) 30. Qa6 {[%emt 0:00:56]} Qb4 {[%emt 0:01:17] [#]} (30... Bxd4 $2 31. Nf5 Bb7 32. Qc4 $18 (32. Rxd4 $2 Qxd4 33. Nxh6+ Kf8 $19)) (30... Rb8 $16) 31. Rc4 $1 $18 {[%emt 0:00:06]} Qxb3 {[%emt 0:02:14] Threatens to win with ...Bb7.} 32. Rb1 {[%emt 0:00:03]} Bb7 $2 {[%emt 0:00:01] Loses the game.} (32... Qa2 $16) 33. Qa7 {[%emt 0:00:27]} (33. Qxb6 Qxb6 34. Rxb6 Bxd4 $15) 33... Qa3 {[%emt 0:00:01]} 34. Qxb6 {[%emt 0:00:04]} (34. Rxb6 Ra8 $16) 34... Qe7 {[%emt 0:00:05]} 35. d5 {[%emt 0:00:42]} (35. Bxc6 Bxc6 36. Rxc6 Rxc6 37. Qxc6 Bxd4 $16) 35... c5 {[%emt 0:01:18]} (35... Bc8 $142 36. dxc6 (36. Rxc6 Rxc6 37. dxc6 Bd4 $16) (36. Qxa5 Ra7 $16) 36... Be6) 36. Nf5 {[%emt 0:00:11]} (36. Qxa5 Bd4 37. Rb3 Bc8 $16) 36... Qe5 {[%emt 0:00:01]} 37. Nxh6+ {[%emt 0:00:59]} (37. Qxa5 Bxd5 38. Rd1 Ra8 39. Qxa8+ (39. Nxh6+ $2 Bxh6 40. Qb6 Bxc4 $19) 39... Bxa8 40. Rd8+ Bf8 41. Nxh6+ (41. Bxa8 $2 Qxf5 42. Kg2 Qf6 $19) 41... Kh8 42. Rxa8 Qe6 43. Rxf8+ Kg7 $16) 37... Kf8 {[%emt 0:00:08]} 38. Ng4 {[%emt 0:00:04]} ({But not} 38. Rxc5 Rcd7 39. Bg2 Bxd5 40. Bxd5 Rxd5 $18) 38... Qd6 {[%emt 0:00:06]} 39. Qxd6+ {[%emt 0:00:04]} ({Not} 39. Qxa5 Bd4 40. Bg2 Bc8 $18) 39... Rxd6 {[%emt 0:00:00]} 40. Ne3 {[%emt 0:00:04]} Ba6 {[%emt 0:00:14]} 41. Rb8+ {[%emt 0:00:03]} Rc8 {[%emt 0:00:27]} 42. Rxc8+ {[%emt 0:00:03][%mdl 64] Remove Defender} Bxc8 {[%emt 0:00:00]} 43. Rxc5 {[%emt 0:00:05]} Bd7 {[%emt 0:00:02]} 44. Rxa5 {[%emt 0:00:06] Hoping for Ra8+.} Bd4 {[%emt 0:00:01]} 45. Nf5 {[%emt 0:00:04]} Bxf5 {[%emt 0:00:02]} 46. Bxf5 {[%emt 0:00:00][%mdl 4096] Endgame KRB-KRB} g4 {[%emt 0:00:15]} 47. Bxg4 {[%emt 0:00:06]} Rf6 {[%emt 0:00:02] [#]} 48. d6 $1 {[%emt 0:00:05]} Rxd6 {[%emt 0:00:14]} 49. Rf5 {[%emt 0:00:02]} Kg7 {[%emt 0:00:07]} 50. Kg2 {[%emt 0:00:02]} Rb6 {[%emt 0:00:08]} 51. a5 {[%emt 0:00:02]} Rb2 {[%emt 0:00:02] [#]} 52. h6+ {[%emt 0:00:05]} Kg6 $2 {[%emt 0:00:07]} (52... Kxh6 {might work better.} 53. Rxf7 Ra2) 53. h7 {[%emt 0:00:02]} Ra2 $2 {[%emt 0:00:10]} (53... Kxh7 54. Rxf7+ Kg6) 54. Rf4 {[%emt 0:00:01]} Be5 {[%emt 0:00:03]} 55. Bf5+ {[%emt 0:00:04]} Kg5 {[%emt 0:00:04]} 56. Rf3 {[%emt 0:00:01]} (56. Bb1 $142 Rxa5 57. Rf5+ Kh6 58. h8=Q+ Bxh8 59. Rxa5 Bd4 60. Rd5 Bb2 61. Rd7) 56... Rxa5 {[%emt 0:00:03]} 57. Bd3 {[%emt 0:00:01]} Kh6 {[%emt 0:00:09]} 58. Rxf7 {[%emt 0:00:03] White wants to mate with f4.} Ra8 {[%emt 0:00:01]} 59. f4 {[%emt 0:00:03] White mates.} Bg7 {[%emt 0:00:09]} 60. Kh3 {[%emt 0:00:03]} Rd8 {[%emt 0:00:02]} 61. Bf5 {[%emt 0:00:02]} Ra8 {[%emt 0:00:03]} 62. Kh4 {[%emt 0:00:06]} Ra1 {[%emt 0:00:02] [#]} 63. h8=Q+ $1 {[%emt 0:00:01] Weighted Error Value: White=0.30/Black=0.60} 1-0